bitfinex-derivatives/quotes_BTCF0:USTF0_20241008
["timestamp","ask_amount","ask_price","bid_price","bid_amount"]
[1728400209721,0.259644,62801.0,62800.0,0.17]
[1728400211506,0.261644,62801.0,62800.0,0.17]
[1728400211904,0.622444,62801.0,62800.0,0.17]
[1728400212107,0.622444,62801.0,62800.0,0.15951931]
[1728400212708,0.626444,62801.0,62800.0,0.15951931]
[1728400215311,0.446444,62801.0,62800.0,0.15951931]
[1728400215608,0.446444,62801.0,62800.0,0.41916431]
[1728400215609,0.006,62801.0,62800.0,0.41916431]
[1728400216118,0.085644,62801.0,62800.0,0.23916431]
[1728400216310,0.006,62801.0,62800.0,0.23916431]
[1728400216916,0.085644,62801.0,62800.0,0.23916431]
[1728400217715,0.006,62801.0,62800.0,0.23916431]
[1728400217915,0.004,62801.0,62800.0,0.24116431]
[1728400218716,0.006,62801.0,62800.0,0.23916431]
[1728400220417,0.085644,62801.0,62800.0,0.23916431]
[1728400220622,0.263644,62801.0,62800.0,0.15951931]
[1728400220925,0.624444,62801.0,62800.0,0.16151931]
[1728400221227,0.620444,62801.0,62800.0,0.16151931]
[1728400221410,0.620444,62801.0,62800.0,0.16351931]
[1728400222014,0.259644,62801.0,62800.0,0.16351931]
[1728400222324,0.259644,62801.0,62800.0,0.15951931]
[1728400222524,0.265644,62801.0,62800.0,0.15951931]
[1728400229931,0.265644,62801.0,62800.0,0.03551931]
[1728400231731,1.26372,62801.0,62792.0,0.3608]
[1728400231923,0.259654,62793.0,62792.0,0.3608]
[1728400232328,0.259654,62793.0,62792.0,0.440455]
[1728400233129,0.07965,62796.0,62792.0,0.444455]
[1728400233418,0.07965,62796.0,62795.0,0.079652]
[1728400234021,0.001,62801.0,62793.0,0.079654]
[1728400234022,0.079647,62799.0,62793.0,0.079654]
[1728400234227,0.079647,62799.0,62798.0,0.079648]
[1728400235332,0.081647,62799.0,62798.0,0.079648]
[1728400235818,0.261647,62799.0,62798.0,0.079648]
[1728400236621,0.002,62799.0,62798.0,0.079648]
[1728400237126,0.002,62799.0,62798.0,0.440448]
[1728400238031,0.081646,62799.0,62798.0,0.440448]
[1728400238741,0.002,62799.0,62798.0,0.440448]
[1728400241229,0.002,62799.0,62798.0,1.251668]
[1728400241443,0.079632,62811.0,62804.0,0.079639]
[1728400241741,0.079632,62811.0,62810.0,0.079633]
[1728400242326,0.079627,62814.0,62813.0,0.079629]
[1728400242535,0.5408,62822.0,62811.0,0.5408]
[1728400242730,0.079622,62819.0,62816.0,0.079625]
[1728400243038,0.079619,62821.0,62816.0,0.079625]
[1728400243534,0.440411,62828.0,62816.0,0.079625]
[1728400243535,0.19730535,62825.0,62816.0,0.079625]
[1728400243841,0.440411,62828.0,62816.0,0.259625]
[1728400244036,0.079612,62826.0,62816.0,0.259625]
[1728400244231,0.079617,62823.0,62816.0,0.079625]
[1728400244429,0.079618,62822.0,62816.0,0.079625]
[1728400244628,0.440411,62828.0,62816.0,0.079625]
[1728400244629,0.01038879,62817.0,62816.0,0.079625]
[1728400244825,0.19038879,62817.0,62816.0,0.079625]
[1728400245042,0.079629,62813.0,62812.0,0.14746796]
[1728400245231,0.259629,62813.0,62812.0,0.14746796]
[1728400245429,0.259629,62813.0,62811.0,0.0014]
[1728400245430,0.07963,62812.0,62811.0,0.0014]
[1728400245630,0.079638,62806.0,62805.0,0.440439]
[1728400245832,0.079638,62806.0,62805.0,0.3608]
[1728400246430,0.079638,62806.0,62805.0,0.440439]
[1728400246833,0.18,62813.0,62805.0,0.3608]
[1728400247135,0.18,62813.0,62809.0,0.079631]
[1728400247136,0.079634,62810.0,62809.0,0.079631]
[1728400248027,0.001,62812.0,62811.0,0.079631]
[1728400248228,0.08063,62812.0,62811.0,0.079631]
[1728400248624,0.08063,62812.0,62811.0,0.440431]
[1728400248826,0.001,62812.0,62811.0,0.440431]
[1728400249132,0.004,62817.0,62816.0,0.079625]
[1728400249435,0.09651587,62823.0,62822.0,0.079617]
[1728400249642,0.079617,62823.0,62822.0,0.079617]
[1728400251529,0.18,62825.0,62819.0,0.3608]
[1728400251726,0.079617,62823.0,62822.0,0.079615]
[1728400251934,0.105617,62823.0,62822.0,0.080615]
[1728400252935,0.093617,62823.0,62822.0,0.080615]
[1728400254734,0.105617,62823.0,62822.0,0.080615]
[1728400255833,0.105617,62823.0,62822.0,0.001]
[1728400256437,0.105617,62823.0,62812.0,0.4113]
[1728400256438,0.026,62823.0,62807.0,0.05628812]
[1728400256738,0.18,62808.0,62807.0,0.0987351]
[1728400256929,0.259635,62808.0,62807.0,0.08202412]
[1728400257734,0.259635,62808.0,62807.0,0.08402412]
[1728400258042,0.259635,62808.0,62807.0,0.10090294]
[1728400258538,0.259635,62808.0,62807.0,0.08502412]
[1728400259326,0.259635,62808.0,62807.0,0.00338812]
[1728400259538,0.259635,62808.0,62807.0,0.00238812]
[1728400259732,0.262635,62808.0,62807.0,0.00238812]
[1728400260543,0.27950704,62808.0,62807.0,0.00238812]
[1728400260932,0.28050704,62808.0,62807.0,0.08202412]
[1728400261240,0.263635,62808.0,62807.0,0.08202412]
[1728400261442,0.260635,62808.0,62807.0,0.08202412]
[1728400261636,0.264635,62808.0,62807.0,0.08202412]
[1728400261840,0.267635,62808.0,62807.0,0.08202412]
[1728400262043,0.263635,62808.0,62807.0,0.08202412]
[1728400262243,0.263635,62808.0,62807.0,0.08302412]
[1728400262244,0.269635,62808.0,62807.0,0.08302412]
[1728400262943,0.089635,62808.0,62807.0,0.08302412]
[1728400266249,0.089635,62808.0,62807.0,0.080636]
[1728400266438,0.269635,62808.0,62807.0,0.080636]
[1728400267739,0.269635,62808.0,62807.0,0.001]
[1728400267946,0.269635,62808.0,62807.0,0.080636]
[1728400268335,0.269635,62808.0,62807.0,0.001]
[1728400270244,0.079641,62803.0,62802.0,0.3608]
[1728400270443,0.259641,62803.0,62802.0,0.3608]
[1728400270838,0.259641,62803.0,62802.0,0.440443]
[1728400271034,0.259641,62803.0,62802.0,0.3608]
[1728400271653,0.259641,62803.0,62802.0,0.3618]
[1728400271842,0.260641,62803.0,62802.0,0.3618]
[1728400272847,0.264641,62803.0,62802.0,0.3628]
[1728400273345,0.28166112,62803.0,62802.0,0.002]
[1728400273749,0.28466112,62803.0,62802.0,0.001]
[1728400276447,1.72314112,62803.0,62802.0,0.001]
[1728400276643,0.07965,62796.0,62783.0,0.3608]
[1728400276852,0.259666,62784.0,62783.0,0.3608]
[1728400277237,0.259666,62784.0,62778.0,0.079672]
[1728400277238,0.079674,62777.0,62776.0,0.3608]
[1728400277645,0.079679,62773.0,62772.0,0.07968]
[1728400277841,0.259679,62773.0,62772.0,0.07968]
[1728400278047,0.259679,62773.0,62769.0,0.079681]
[1728400278048,0.079684,62770.0,62769.0,0.079681]
[1728400279550,0.079684,62770.0,62769.0,0.084681]
[1728400279551,0.080684,62770.0,62769.0,0.084681]
[1728400280045,0.081684,62770.0,62769.0,0.084681]
[1728400281345,0.081684,62770.0,62769.0,0.005]
[1728400281346,0.09895427,62770.0,62769.0,0.005]
[1728400282344,0.079687,62767.0,62766.0,0.3608]
[1728400282545,0.259687,62767.0,62766.0,0.3608]
[1728400282745,1.337647,62767.0,62766.0,0.3608]
[1728400282950,1.25796,62767.0,62759.0,0.079696]
[1728400283152,0.18,62760.0,62747.0,0.0492]
[1728400283357,0.079692,62763.0,62753.0,0.079704]
[1728400283358,0.079708,62754.0,62753.0,0.079704]
[1728400284349,0.079708,62754.0,62747.0,0.01718097]
[1728400284549,0.079708,62754.0,62746.0,0.36319038]
[1728400284550,0.079711,62751.0,62750.0,0.079707]
[1728400284745,0.259711,62751.0,62750.0,0.079707]
[1728400285256,0.079712,62748.0,62747.0,0.079712]
[1728400285450,0.259712,62748.0,62747.0,0.079712]
[1728400285650,0.081704,62754.0,62753.0,0.079705]
[1728400285850,0.002,62754.0,62753.0,0.079705]
[1728400286063,0.002,62754.0,62746.0,0.36319038]
[1728400286064,0.081704,62754.0,62746.0,0.36319038]
[1728400286356,0.25971,62750.0,62749.0,0.07971]
[1728400286755,0.18,62750.0,62749.0,0.07971]
[1728400287060,0.259709,62750.0,62749.0,0.07971]
[1728400287263,0.259709,62750.0,62746.0,0.36319038]
[1728400287264,0.079712,62747.0,62746.0,0.44290238]
[1728400287554,0.079712,62747.0,62746.0,0.00239038]
[1728400288158,0.079712,62747.0,62743.0,0.3608]
[1728400288159,0.079716,62744.0,62743.0,0.3608]
[1728400288356,0.079716,62744.0,62743.0,0.440518]
[1728400288357,0.259716,62744.0,62743.0,0.440518]
[1728400288759,0.002,62747.0,62746.0,0.079714]
[1728400289255,0.079709,62751.0,62750.0,0.079707]
[1728400289559,0.259707,62752.0,62751.0,0.079707]
[1728400290063,0.18,62752.0,62750.0,0.3608]
[1728400290263,0.079707,62751.0,62750.0,0.3608]
[1728400290561,0.079707,62751.0,62745.0,0.079714]
[1728400290763,0.259714,62747.0,62746.0,0.079714]
[1728400292059,0.182,62747.0,62746.0,0.079714]
[1728400292255,0.002,62747.0,62746.0,0.079714]
[1728400292458,0.002,62747.0,62746.0,0.133714]
[1728400292864,0.002,62747.0,62746.0,0.15035913]
[1728400295159,0.002,62747.0,62746.0,0.09635913]
[1728400295160,0.182,62747.0,62746.0,0.09635913]
[1728400295363,0.261712,62747.0,62746.0,0.09635913]
[1728400295962,0.079714,62746.0,62745.0,0.3608]
[1728400296379,0.261712,62747.0,62742.0,0.079718]
[1728400296558,0.259718,62743.0,62742.0,0.079718]
[1728400297271,0.18,62743.0,62742.0,0.09658463]
[1728400297466,0.079715,62745.0,62742.0,0.01686663]
[1728400297772,0.079715,62745.0,62744.0,0.079716]
[1728400297972,0.079715,62745.0,62744.0,0.440516]
[1728400298363,0.18,62746.0,62745.0,0.079715]
[1728400298974,0.079708,62751.0,62745.0,0.079715]
[1728400299361,0.079708,62751.0,62750.0,0.3608]
[1728400299663,0.09670572,62753.0,62752.0,0.079706]
[1728400299868,0.079705,62753.0,62752.0,0.079706]
[1728400301074,0.080705,62753.0,62752.0,0.079706]
[1728400301374,0.081705,62753.0,62752.0,0.080706]
[1728400302968,0.081705,62753.0,62752.0,0.001]
[1728400303180,1.159785,62753.0,62752.0,0.001]
[1728400304072,1.159785,62753.0,62737.0,0.06310118]
[1728400304073,0.07972,62741.0,62737.0,0.06310118]
[1728400304377,0.25972,62741.0,62737.0,0.06310118]
[1728400305374,0.26072,62741.0,62738.0,0.079724]
[1728400305573,0.26072,62741.0,62739.0,0.079722]
[1728400305775,0.26072,62741.0,62737.0,0.06310118]
[1728400305969,0.26072,62741.0,62737.0,0.14282618]
[1728400306178,0.26172,62741.0,62737.0,0.14282618]
[1728400306378,0.27871262,62741.0,62737.0,0.14282618]
[1728400306775,0.27971262,62741.0,62737.0,0.06310118]
[1728400307079,0.28671262,62741.0,62738.0,0.079723]
[1728400307469,0.27871262,62741.0,62738.0,0.079723]
[1728400307669,0.28671262,62741.0,62738.0,0.079723]
[1728400307877,0.28671262,62741.0,62737.0,0.06310118]
[1728400308079,0.28071262,62741.0,62737.0,0.06310118]
[1728400308272,0.28471262,62741.0,62737.0,0.06310118]
[1728400308466,0.079724,62738.0,62737.0,0.0473292]
[1728400309479,0.079726,62736.0,62734.0,0.14283018]
[1728400309684,0.18,62735.0,62734.0,0.14283018]
[1728400310179,0.18,62735.0,62717.0,0.3608]
[1728400310180,0.079742,62724.0,62717.0,0.3608]
[1728400310388,0.079744,62722.0,62715.0,0.079753]
[1728400310575,0.18,62716.0,62715.0,0.079753]
[1728400313378,0.182,62716.0,62715.0,0.079753]
[1728400313685,0.07826183,62716.0,62715.0,0.079753]
[1728400314683,0.002,62716.0,62715.0,0.079753]
[1728400315281,0.182,62716.0,62715.0,0.079753]
[1728400316174,0.182,62716.0,62713.0,0.37798832]
[1728400316376,0.182,62716.0,62715.0,0.079753]
[1728400316584,0.261752,62716.0,62715.0,0.079753]
[1728400317185,0.182,62716.0,62715.0,0.079753]
[1728400317981,0.002,62716.0,62715.0,0.079753]
[1728400318885,0.001,62716.0,62715.0,0.079753]
[1728400319091,0.002,62716.0,62715.0,0.079753]
[1728400319477,0.07974,62726.0,62725.0,0.07974]
[1728400319478,0.25974,62726.0,62725.0,0.07974]
[1728400319682,0.0494,62729.0,62728.0,0.079737]
[1728400319976,0.180125,62737.0,62729.0,0.079735]
[1728400319977,0.18,62734.0,62729.0,0.079735]
[1728400320184,0.18,62734.0,62727.0,0.04727447]
[1728400320185,0.5408,62738.0,62732.0,0.079732]
[1728400320387,0.18239192,62733.0,62732.0,0.12700647]
[1728400322290,0.079732,62732.0,62731.0,0.40807447]
[1728400322590,0.18239192,62733.0,62732.0,0.079732]
[1728400322795,0.00239192,62733.0,62732.0,0.079732]
[1728400323186,0.00439192,62733.0,62732.0,0.079732]
[1728400323686,0.00439192,62733.0,62731.0,0.3608]
[1728400323887,0.079739,62726.0,62725.0,0.07974]
[1728400324086,0.079732,62732.0,62724.0,0.3608]
[1728400324087,0.07974,62725.0,62724.0,0.3608]
[1728400324282,0.25974,62725.0,62724.0,0.3608]
[1728400324493,0.079744,62722.0,62721.0,0.04730005]
[1728400324786,0.079746,62721.0,62719.0,0.04730005]
[1728400324989,0.079746,62721.0,62710.0,0.3608]
[1728400324990,0.18,62720.0,62710.0,0.3608]
[1728400325187,0.18,62720.0,62704.0,0.3608]
[1728400325188,0.079765,62706.0,62704.0,0.3608]
[1728400325395,0.259765,62706.0,62705.0,0.1239302]
[1728400325580,0.259765,62706.0,62705.0,0.00239192]
[1728400325982,0.259765,62706.0,62705.0,0.08215792]
[1728400326396,0.360765,62706.0,62705.0,0.08315792]
[1728400326697,0.361765,62706.0,62705.0,0.08315792]
[1728400327504,0.361765,62706.0,62705.0,0.00339192]
[1728400330497,0.361765,62706.0,62705.0,0.08315792]
[1728400330698,0.282,62706.0,62705.0,0.08315792]
[1728400330897,0.002,62706.0,62705.0,0.44395792]
[1728400331394,0.002,62706.0,62705.0,1.53912462]
[1728400334302,0.079755,62714.0,62705.0,1.53912462]
[1728400334303,0.079755,62714.0,62713.0,0.079756]
[1728400335194,0.079764,62707.0,62706.0,0.079765]
[1728400335496,0.079772,62700.0,62699.0,0.440573]
[1728400335698,0.359772,62700.0,62699.0,0.440573]
[1728400335912,0.359772,62700.0,62699.0,0.3608]
[1728400336499,0.359772,62700.0,62699.0,0.440574]
[1728400336688,0.359772,62700.0,62699.0,0.3608]
[1728400337089,0.359772,62700.0,62692.0,0.079781]
[1728400337090,0.079783,62693.0,62692.0,0.079781]
[1728400337301,0.359783,62693.0,62692.0,0.440581]
[1728400337901,0.079778,62697.0,62696.0,0.079776]
[1728400338103,0.079781,62693.0,62692.0,0.00132]
[1728400338398,0.079781,62693.0,62689.0,0.3608]
[1728400338399,0.079782,62692.0,62691.0,0.079783]
[1728400338812,0.28,62693.0,62692.0,0.079782]
[1728400339011,0.001,62693.0,62692.0,0.082782]
[1728400339411,0.282,62693.0,62692.0,0.082782]
[1728400339606,0.361781,62693.0,62692.0,0.082782]
[1728400339806,0.002,62693.0,62692.0,0.082782]
[1728400340917,0.001,62693.0,62692.0,0.079782]
[1728400341109,0.080781,62693.0,62692.0,0.079782]
[1728400341918,0.081781,62693.0,62692.0,0.081782]
[1728400342109,0.002,62693.0,62692.0,0.081782]
[1728400350415,0.259769,62703.0,62702.0,0.07977]
[1728400350612,0.079764,62707.0,62705.0,0.079766]
[1728400350808,0.079746,62721.0,62712.0,0.079757]
[1728400350809,0.05349272,62714.0,62712.0,0.079757]
[1728400351012,0.00239272,62714.0,62713.0,0.079756]
[1728400351213,0.08214672,62714.0,62713.0,0.079756]
[1728400352827,0.00239272,62714.0,62713.0,0.079756]
[1728400353019,0.08214672,62714.0,62713.0,0.079756]
[1728400353319,0.00339272,62714.0,62713.0,0.079756]
[1728400353623,0.00339272,62714.0,62713.0,0.080756]
[1728400355316,0.00339272,62714.0,62713.0,0.09792862]
[1728400357629,0.00339272,62714.0,62713.0,0.19472862]
[1728400357829,0.07974,62726.0,62725.0,0.079738]
[1728400359435,0.09274,62726.0,62725.0,0.079738]
[1728400360122,0.44554,62726.0,62725.0,0.079738]
[1728400360419,0.44554,62726.0,62713.0,0.079755]
[1728400360420,0.079754,62714.0,62713.0,0.079755]
[1728400361129,0.2322,62717.0,62716.0,0.079752]
[1728400361130,0.0522,62717.0,62716.0,0.079752]
[1728400361321,0.079741,62725.0,62724.0,0.07974]
[1728400361621,0.08274,62726.0,62725.0,0.07974]
[1728400362836,0.07974,62726.0,62725.0,0.07974]
[1728400363524,0.08674,62726.0,62725.0,0.07974]
[1728400363920,0.07974,62726.0,62725.0,0.07974]
[1728400364129,0.08574,62726.0,62725.0,0.07974]
[1728400365628,0.07974,62726.0,62725.0,0.07974]
[1728400365934,0.002,62726.0,62725.0,0.07974]
[1728400366824,0.08212192,62733.0,62725.0,0.07974]
[1728400367025,0.08212192,62733.0,62732.0,0.079732]
[1728400367319,0.00239192,62733.0,62732.0,0.079732]
[1728400369425,0.01139192,62733.0,62732.0,0.079732]
[1728400370736,0.01839192,62733.0,62732.0,0.079732]
[1728400371426,0.01839192,62733.0,62732.0,0.09688989]
[1728400371935,0.0509,62747.0,62746.0,0.079714]
[1728400372140,0.079711,62749.0,62745.0,0.18]
[1728400372347,0.079711,62749.0,62748.0,0.079711]
[1728400372731,0.079711,62749.0,62745.0,0.18]
[1728400372932,0.079711,62749.0,62745.0,0.079714]
[1728400372933,0.079714,62746.0,62745.0,0.079714]
[1728400373326,0.009,62747.0,62744.0,0.3608]
[1728400373327,0.079715,62745.0,62744.0,0.3608]
[1728400373728,0.079715,62745.0,62744.0,0.440516]
[1728400374841,0.080715,62745.0,62744.0,0.440516]
[1728400375433,0.001,62745.0,62744.0,0.440516]
[1728400375736,0.081715,62745.0,62744.0,0.3608]
[1728400375928,0.261715,62745.0,62744.0,0.3608]
[1728400376329,0.259715,62745.0,62744.0,0.3618]
[1728400376535,0.259715,62745.0,62744.0,0.004]
[1728400377133,0.259715,62745.0,62744.0,0.001]
[1728400377337,0.260715,62745.0,62744.0,0.001]
[1728400378134,0.261715,62745.0,62744.0,0.001]
[1728400378647,0.081715,62745.0,62744.0,0.080716]
[1728400378834,0.084715,62745.0,62744.0,0.079716]
[1728400379035,0.005,62745.0,62744.0,0.079716]
[1728400379241,0.005,62745.0,62744.0,0.259716]
[1728400379436,0.006,62745.0,62744.0,0.259716]
[1728400379637,0.006,62745.0,62744.0,0.620516]
[1728400379942,0.11658903,62757.0,62756.0,0.079701]
[1728400379943,0.0493,62757.0,62756.0,0.079701]
[1728400380341,0.0493,62757.0,62754.0,0.3608]
[1728400380532,0.079702,62755.0,62754.0,0.3608]
[1728400381237,0.079702,62755.0,62754.0,0.440504]
[1728400381935,0.079712,62749.0,62748.0,0.07971]
[1728400383748,0.079712,62749.0,62748.0,0.08071]
[1728400384046,0.079712,62749.0,62748.0,0.44151]
[1728400385438,0.080712,62749.0,62748.0,0.44151]
[1728400385843,0.079712,62749.0,62748.0,0.44151]
[1728400386043,0.080712,62749.0,62748.0,0.44151]
[1728400386244,0.001,62749.0,62748.0,0.44151]
[1728400386450,0.00239107,62760.0,62748.0,0.5418]
[1728400386651,0.00239107,62760.0,62759.0,0.079697]
[1728400387646,0.00204107,62760.0,62759.0,0.079697]
[1728400387854,0.01204107,62760.0,62759.0,0.080697]
[1728400388151,0.01,62760.0,62759.0,0.080697]
[1728400388958,0.089696,62760.0,62759.0,0.080697]
[1728400389253,0.089696,62760.0,62759.0,0.001]
[1728400389439,0.095696,62760.0,62759.0,0.001]
[1728400389644,0.089696,62760.0,62759.0,0.001]
[1728400390549,0.10700978,62760.0,62759.0,0.001]
[1728400391346,0.089696,62760.0,62759.0,0.080697]
[1728400391848,0.269696,62760.0,62759.0,0.001]
[1728400393345,0.269696,62760.0,62750.0,0.3608]
[1728400393346,0.079707,62751.0,62750.0,0.3608]
[1728400393545,0.259707,62751.0,62750.0,0.440509]
[1728400394654,0.079712,62747.0,62746.0,0.079713]
[1728400396150,0.080712,62747.0,62746.0,0.081713]
[1728400396651,0.080712,62747.0,62746.0,0.080713]
[1728400397451,0.001,62747.0,62746.0,0.079713]
[1728400398251,0.080712,62747.0,62746.0,0.079713]
[1728400398449,0.080712,62747.0,62742.0,0.3608]
[1728400398450,0.079718,62744.0,62743.0,0.079717]
[1728400399962,0.080718,62744.0,62743.0,0.083717]
[1728400400560,0.080718,62744.0,62743.0,0.086717]
[1728400400763,0.079718,62744.0,62743.0,0.083717]
[1728400401067,0.079713,62747.0,62746.0,0.079711]
[1728400402764,0.081713,62747.0,62746.0,0.079711]
[1728400403266,0.082713,62747.0,62746.0,0.079711]
[1728400403766,0.079713,62747.0,62746.0,0.079711]
[1728400404059,0.083713,62747.0,62746.0,0.079711]
[1728400406764,0.003,62747.0,62746.0,0.080711]
[1728400406963,0.002,62747.0,62746.0,0.080711]
[1728400407556,0.002,62747.0,62746.0,0.079711]
[1728400407762,0.001,62747.0,62746.0,0.080711]
[1728400408570,0.080712,62747.0,62746.0,0.080711]
[1728400409267,0.079712,62747.0,62746.0,0.080711]
[1728400409565,0.081712,62747.0,62746.0,0.087711]
[1728400409884,0.080712,62747.0,62746.0,0.090711]
[1728400410163,0.079712,62747.0,62746.0,0.086711]
[1728400410369,0.079708,62751.0,62750.0,0.079709]
[1728400410957,0.079709,62750.0,62749.0,0.3608]
[1728400411158,0.079709,62750.0,62749.0,0.44051]
[1728400413067,0.080709,62750.0,62749.0,0.44051]
[1728400413368,0.080709,62750.0,62749.0,0.44151]
[1728400413571,0.079709,62750.0,62749.0,0.44151]
[1728400413783,0.080709,62750.0,62749.0,0.44151]
[1728400414069,0.080709,62750.0,62749.0,0.3608]
[1728400414268,0.080709,62750.0,62749.0,0.3618]
[1728400415262,0.079709,62750.0,62749.0,0.3618]
[1728400415470,0.080709,62750.0,62749.0,0.3618]
[1728400415767,0.080709,62750.0,62749.0,0.3608]
[1728400415961,0.10109268,62750.0,62749.0,0.3608]
[1728400416361,0.13188395,62750.0,62749.0,0.3608]
[1728400416759,0.13388395,62750.0,62749.0,0.3608]
[1728400417164,0.13288395,62750.0,62749.0,0.3608]
[1728400417365,0.13088395,62750.0,62749.0,0.3608]
[1728400417660,0.03579127,62750.0,62749.0,0.44051]
[1728400417860,0.005,62750.0,62749.0,0.44051]
[1728400418972,0.003,62750.0,62749.0,0.44051]
[1728400419273,0.079699,62758.0,62757.0,0.0797]
[1728400419570,0.11048666,62758.0,62757.0,0.4405]
[1728400419770,0.03078766,62758.0,62757.0,0.4405]
[1728400419991,0.00239087,62761.0,62760.0,0.079696]
[1728400420272,0.00239087,62761.0,62760.0,0.620496]
[1728400421571,0.08208587,62761.0,62760.0,0.440496]
[1728400422067,0.00239087,62761.0,62760.0,0.440496]
[1728400422476,0.00239087,62761.0,62760.0,0.620496]
[1728400422971,0.079695,62762.0,62761.0,0.079694]
[1728400423774,0.079695,62761.0,62760.0,0.3628]
[1728400424080,0.079695,62761.0,62760.0,0.3618]
[1728400425775,0.079695,62761.0,62760.0,0.3608]
[1728400426373,0.079695,62761.0,62760.0,0.441496]
[1728400426374,0.087695,62761.0,62760.0,0.441496]
[1728400427178,0.093695,62761.0,62760.0,0.442496]
[1728400428067,0.014,62761.0,62760.0,0.622496]
[1728400428466,0.002,62770.0,62760.0,1.6208]
[1728400428669,0.079675,62777.0,62776.0,0.079674]
[1728400428875,0.079675,62777.0,62776.0,0.620474]
[1728400429084,0.0498,62778.0,62777.0,0.079674]
[1728400429268,0.079674,62777.0,62776.0,0.441795]
[1728400429577,0.079674,62777.0,62776.0,0.36212]
[1728400429771,0.079674,62777.0,62772.0,0.18]
[1728400429772,0.0820601,62781.0,62772.0,0.18]
[1728400429973,0.0820601,62781.0,62776.0,0.001]
[1728400429974,0.093674,62777.0,62776.0,0.001]
[1728400430181,0.093674,62777.0,62776.0,0.080676]
[1728400430674,0.107674,62777.0,62776.0,0.081676]
[1728400431269,0.107674,62777.0,62776.0,0.442476]
[1728400432476,0.107674,62777.0,62776.0,0.45965135]
[1728400433580,0.107674,62777.0,62776.0,0.01917535]
[1728400435074,0.107674,62777.0,62776.0,0.002]
[1728400435883,0.107674,62777.0,62776.0,0.081676]
[1728400436073,0.107674,62777.0,62776.0,0.261676]
[1728400436872,0.028,62777.0,62776.0,0.261676]
[1728400437080,0.028,62777.0,62776.0,0.364876]
[1728400438782,0.024,62777.0,62776.0,0.364876]
[1728400439583,0.018,62777.0,62776.0,0.363876]
[1728400439783,0.017,62777.0,62776.0,0.363876]
[1728400440180,0.3608,62793.0,62776.0,0.363876]
[1728400440181,0.0485,62794.0,62776.0,0.2842]
[1728400440385,0.079657,62791.0,62790.0,0.620457]
[1728400440779,0.09754,62801.0,62792.0,0.079654]
[1728400440780,0.079654,62793.0,62792.0,0.079654]
[1728400440979,0.079654,62793.0,62792.0,0.259654]
[1728400441180,0.079654,62793.0,62792.0,0.079654]
[1728400442183,0.003,62794.0,62793.0,0.079654]
[1728400442382,0.003,62794.0,62792.0,0.01782599]
[1728400442383,0.082653,62794.0,62792.0,0.01782599]
[1728400442583,0.082653,62794.0,62790.0,0.3608]
[1728400442584,0.079654,62793.0,62790.0,0.001]
[1728400442889,0.079657,62791.0,62790.0,0.001]
[1728400443094,0.079657,62791.0,62787.0,0.079661]
[1728400443387,0.07966,62788.0,62787.0,0.079661]
[1728400445785,0.07966,62788.0,62787.0,0.082661]
[1728400446679,0.07966,62788.0,62787.0,0.005]
[1728400446883,0.07966,62788.0,62787.0,0.084662]
[1728400447980,0.07966,62788.0,62787.0,0.005]
[1728400448180,0.07966,62788.0,62787.0,0.004]
[1728400448686,1.2578,62788.0,62769.0,0.3608]
[1728400450187,0.079681,62772.0,62771.0,0.079682]
[1728400450678,0.079681,62772.0,62771.0,0.259682]
[1728400450982,0.079681,62772.0,62771.0,0.262682]
[1728400451388,0.079681,62772.0,62771.0,0.003]
[1728400451993,0.079681,62772.0,62771.0,0.006]
[1728400452792,0.079683,62770.0,62769.0,0.3608]
[1728400454083,0.079683,62770.0,62769.0,0.3638]
[1728400455488,0.079683,62770.0,62769.0,0.3668]
[1728400456695,0.079683,62770.0,62769.0,0.006]
[1728400461297,0.11046567,62770.0,62769.0,0.006]
[1728400461502,0.079683,62770.0,62769.0,0.006]
[1728400461889,1.157603,62770.0,62764.0,0.00092]
[1728400462199,0.079704,62757.0,62756.0,0.079701]
[1728400463893,0.079693,62764.0,62763.0,0.079689]
[1728400466503,0.079693,62764.0,62763.0,0.088689]
[1728400466700,0.080693,62764.0,62763.0,0.088689]
[1728400467505,0.080693,62764.0,62763.0,0.449489]
[1728400468305,0.081693,62764.0,62763.0,0.458489]
[1728400470705,0.081693,62764.0,62763.0,0.018]
[1728400471103,0.081693,62764.0,62763.0,0.097692]
[1728400473016,0.081693,62764.0,62763.0,0.018]
[1728400473317,0.081693,62764.0,62763.0,0.097692]
[1728400474909,0.081691,62764.0,62763.0,0.277692]
[1728400475118,0.081691,62764.0,62763.0,0.097692]
[1728400475810,0.081691,62764.0,62763.0,0.11514834]
[1728400477117,0.002,62764.0,62763.0,0.11514834]
[1728400477917,0.081691,62764.0,62763.0,0.11514834]
[1728400478104,0.081691,62764.0,62763.0,0.097692]
[1728400479209,0.081691,62764.0,62763.0,0.018]
[1728400481008,0.079702,62755.0,62752.0,0.079706]
[1728400481410,0.079702,62755.0,62754.0,0.440504]
[1728400481715,0.079702,62755.0,62754.0,0.3608]
[1728400482511,0.079702,62755.0,62754.0,0.440504]
[1728400483114,0.080702,62755.0,62754.0,0.454504]
[1728400483319,0.081702,62755.0,62754.0,0.463504]
[1728400483711,0.081702,62755.0,62754.0,0.3838]
[1728400484117,0.081702,62755.0,62754.0,0.463504]
[1728400484316,0.081702,62755.0,62754.0,0.102704]
[1728400485017,0.081702,62755.0,62754.0,0.023]
[1728400485907,0.081702,62755.0,62754.0,0.102704]